bitfinex/quotes_SOLUSD_20241111
["timestamp","ask_amount","ask_price","bid_price","bid_amount"]
[1731365674681,11.92262184,219.96,219.81,5.58048302]
[1731365674868,11.92262184,219.96,219.82,6.08335012]
[1731365675271,11.92262184,219.96,219.81,5.58048302]
[1731365675471,11.92262184,219.96,219.81,11.66383314]
[1731365675969,11.92262184,219.96,219.82,20.0]
[1731365676857,11.92262184,219.96,219.82,25.58048302]
[1731365677062,11.92262184,219.96,219.82,20.0]
[1731365677908,11.92262184,219.96,219.89,13.65746539]
[1731365678066,11.92262184,219.96,219.9,31.66383314]
[1731365678879,11.92262184,219.96,219.79,20.0]
[1731365679079,11.92262184,219.96,219.76,5.05860952]
[1731365679286,11.92262184,219.96,219.8,6.07881635]
[1731365679882,11.92262184,219.96,219.8,19.73628174]
[1731365680189,11.92262184,219.96,219.8,10.38818098]
[1731365680374,11.92262184,219.96,219.78,13.65746539]
[1731365680572,11.92262184,219.96,219.79,20.0]
[1731365680774,11.92262184,219.96,219.79,25.05860952]
[1731365681578,11.92262184,219.96,219.79,30.69840025]
[1731365682059,11.92262184,219.96,219.79,25.05860952]
[1731365682260,11.92262184,219.96,219.8,13.65746539]
[1731365682483,11.92262184,219.96,219.81,20.0]
[1731365683089,11.92262184,219.96,219.8,20.0]
[1731365684901,22.1606,219.95,219.8,20.0]
[1731365686599,22.1606,219.95,219.82,20.0]
[1731365687102,22.1606,219.95,219.81,20.0]
[1731365688190,22.1606,219.95,219.82,8.72128831]
[1731365688496,22.1606,219.95,219.83,20.0]
[1731365689204,22.1606,219.95,219.82,20.0]
[1731365690901,22.1606,219.95,219.83,8.72128831]
[1731365691109,22.1606,219.95,219.84,20.0]
[1731365694106,15.0755,219.94,219.79,5.05860952]
[1731365694309,6.174,219.91,219.77,8.72128831]
[1731365694803,6.174,219.91,219.77,14.36107904]
[1731365696196,6.174,219.91,219.78,25.63979073]
[1731365696917,6.174,219.91,219.78,20.0]
[1731365697203,15.0755,219.9,219.74,34.36107904]
[1731365698500,15.0755,219.9,219.79,20.0]
[1731365698691,15.0755,219.9,219.81,20.0]
[1731365699396,15.0755,219.9,219.78,8.72128831]
[1731365699397,15.0755,219.9,219.79,20.0]
[1731365699695,15.0755,219.9,219.83,20.0]
[1731365700106,15.0755,219.9,219.84,20.0]
[1731365700908,15.0755,219.9,219.84,5.63979073]
[1731365701110,15.0755,219.9,219.85,20.0]
[1731365701310,15.0755,219.9,219.85,5.63979073]
[1731365701500,15.0755,219.9,219.79,20.0]
[1731365702113,15.0755,219.9,219.8,5.63979073]
[1731365702512,15.0755,219.9,219.76,14.36107904]
[1731365702812,15.0755,219.9,219.78,8.72128831]
[1731365703015,15.0755,219.9,219.79,5.63979073]
[1731365703617,21.2845,219.89,219.76,25.63979073]
[1731365705417,21.2845,219.89,219.76,34.36107904]
[1731365711610,21.2845,219.89,219.76,25.63979073]
[1731365711922,21.2845,219.89,219.76,34.36107904]
[1731365712101,21.2845,219.89,219.76,25.63979073]
[1731365713009,3.39694983,219.88,219.76,25.63979073]
[1731365713207,21.2845,219.89,219.76,25.63979073]
[1731365713406,21.2845,219.89,219.76,34.36107904]
[1731365713624,21.2845,219.89,219.76,25.63979073]
[1731365714123,21.2845,219.89,219.77,5.63979073]
[1731365714430,21.2845,219.89,219.78,20.0]
[1731365714608,3.39595816,219.88,219.78,20.0]
[1731365714807,21.2845,219.89,219.78,20.0]
[1731365715008,3.39596554,219.88,219.78,20.0]
[1731365715204,21.2845,219.89,219.78,20.0]
[1731365715533,21.2845,219.89,219.76,20.0]
[1731365715725,21.2845,219.89,219.76,25.63979073]
[1731365716517,3.39512216,219.88,219.76,25.63979073]
[1731365716728,0.1,219.92,219.76,25.63979073]
[1731365717022,22.0377,219.9,219.76,25.63979073]
[1731365717220,10.04931311,219.89,219.76,25.63979073]
[1731365717420,22.0377,219.89,219.76,25.63979073]
[1731365718532,22.0377,219.89,219.77,5.63979073]
[1731365718726,22.0377,219.89,219.79,8.72128831]
[1731365718925,22.0377,219.89,219.78,20.0]
[1731365719110,22.0377,219.89,219.78,25.63979073]
[1731365720025,22.0377,219.89,219.78,5.63979073]
[1731365720333,22.0377,219.89,219.78,8.01841885]
[1731365720514,9.45390657,219.88,219.79,25.63979073]
[1731365720825,22.0377,219.89,219.79,25.63979073]
[1731365722832,22.0377,219.89,219.78,20.0]
[1731365723417,22.0377,219.89,219.77,2.33158192]
[1731365723626,22.0377,219.89,219.76,20.0]
[1731365723934,22.0377,219.89,219.76,25.05860952]
[1731365725225,22.0377,219.89,219.76,33.77989783]
[1731365727730,22.0377,219.89,219.76,25.05860952]
[1731365731914,22.0377,219.89,219.76,5.05860952]
[1731365732420,6.6542,219.89,219.75,2.33844112]
[1731365732622,6.0328,219.87,219.71,8.72128831]
[1731365732927,3.39705886,219.88,219.68,7.06726558]
[1731365732928,6.0328,219.83,219.68,7.06726558]
[1731365733110,6.0328,219.83,219.7,8.72128831]
[1731365733314,6.0328,219.83,219.79,8.72128831]
[1731365733513,2.97173582,219.83,219.79,5.63979073]
[1731365733818,15.6849,219.84,219.82,8.72128831]
[1731365734112,3.39705886,219.88,219.82,8.72128831]
[1731365734319,3.39705886,219.88,219.81,20.0]
[1731365734537,3.39705881,219.88,219.81,20.0]
[1731365734837,3.39705881,219.88,219.8,20.0]
[1731365735820,3.39705881,219.88,219.78,28.72128831]
[1731365736024,3.39705881,219.88,219.78,8.72128831]
[1731365736527,6.5241,219.87,219.78,8.72128831]
[1731365737234,6.5241,219.87,219.79,20.0]
[1731365737729,6.5241,219.87,219.78,8.72128831]
[1731365738132,6.5241,219.87,219.79,20.0]
[1731365738633,6.5241,219.87,219.77,20.0]
[1731365739315,6.5241,219.87,219.76,8.72128831]
[1731365739910,6.5241,219.87,219.75,20.0]
[1731365740120,16.6082,219.86,219.75,20.0]
[1731365740326,16.6082,219.86,219.73,8.72128831]
[1731365741237,16.6082,219.86,219.75,8.72128831]
[1731365741414,16.6082,219.86,219.76,20.0]
[1731365742735,16.6082,219.86,219.78,20.0]
[1731365744024,16.6082,219.86,219.85,8.72128831]
[1731365744337,16.6082,219.86,219.85,39.86665139]
[1731365744725,16.6082,219.86,219.85,8.72128831]
[1731365745521,16.6082,219.86,219.8,5.40728598]
[1731365745738,16.6082,219.86,219.85,8.72128831]
[1731365747125,26.09485735,219.86,219.85,8.72128831]
[1731365747345,16.6082,219.86,219.85,8.72128831]
[1731365747833,16.6082,219.86,219.85,28.72128831]
[1731365748837,22.4175,219.99,219.85,28.72128831]
[1731365749447,22.4175,219.99,219.85,34.12857429]
[1731365750048,22.5175,219.99,219.85,34.12857429]
[1731365750229,22.4175,219.99,219.85,34.12857429]
[1731365750435,22.5175,219.99,219.85,34.12857429]
[1731365751854,22.5175,219.99,219.87,8.72128831]
[1731365752148,22.4175,219.99,219.86,5.40728598]
[1731365752350,22.5175,219.99,219.86,5.40728598]
[1731365753156,22.5175,219.99,219.85,8.72128831]
[1731365753539,22.4175,219.99,219.81,5.40728598]
[1731365753743,22.5175,219.99,219.85,8.72128831]
[1731365754047,22.5175,219.99,219.86,5.40728598]
[1731365755237,6.1635,219.99,219.86,5.40728598]
[1731365755439,15.727,219.98,219.86,5.40728598]
[1731365755647,15.727,219.98,219.85,20.0]
[1731365756334,15.727,219.98,219.81,10.51523366]
[1731365756335,15.727,219.98,219.83,20.0]
[1731365757933,15.727,219.96,219.82,20.0]
[1731365758250,6.0314,219.95,219.82,20.0]
[1731365758431,21.8584,219.95,219.78,8.72128831]
[1731365758625,15.727,219.94,219.77,6.87312677]
[1731365758830,6.0314,219.9,219.77,2.36131891]
[1731365759038,15.727,219.89,219.74,5.40728598]
[1731365759643,13.16945824,220.0,219.79,0.0999]
[1731365759845,21.8148,219.99,219.88,8.72128831]
[1731365760148,21.8148,219.99,219.87,20.0]
[1731365760332,21.8148,219.99,219.88,5.38706432]
[1731365760534,21.8148,219.99,219.89,20.0]
[1731365761043,21.8148,219.99,219.85,20.0]
[1731365761633,21.8148,219.99,219.83,20.0]
[1731365762131,23.776884,219.99,219.82,2.26986591]
[1731365762336,22.8887,219.98,219.8,18.64038215]
[1731365762538,16.3166,219.97,219.8,18.64038215]
[1731365763237,6.5721,219.96,219.8,18.64038215]
[1731365763444,16.3166,219.95,219.81,20.0]
[1731365763646,16.3166,219.95,219.81,25.40728598]
[1731365763945,16.3166,219.95,219.82,5.40728598]
[1731365764150,16.3166,219.95,219.83,20.0]
[1731365764451,16.3166,219.95,219.83,25.40728598]
[1731365764842,16.3166,219.95,219.84,5.40728598]
[1731365767847,16.3166,219.95,219.85,8.72128831]
[1731365768857,16.3166,219.95,219.84,10.7943503]
[1731365769248,16.3166,219.95,219.85,25.38706432]
[1731365769441,16.3166,219.95,219.85,39.51563861]
[1731365769638,16.3166,219.95,219.86,5.40728598]
[1731365769844,16.3166,219.95,219.87,20.0]
[1731365770153,16.3166,219.95,219.88,5.40728598]
[1731365770737,16.3166,219.95,219.89,20.0]
[1731365771063,16.3166,219.95,219.89,25.40728598]
[1731365771736,16.3166,219.95,219.9,5.40728598]
[1731365772237,16.3166,219.95,219.88,20.0]
[1731365772436,16.3166,219.95,219.86,20.0]
[1731365772646,16.3166,219.95,219.87,5.40728598]
[1731365772935,16.3166,219.95,219.88,25.38706432]
[1731365773167,16.3166,219.95,219.89,5.40728598]
[1731365773573,16.3166,219.95,219.81,8.72128831]
[1731365773776,16.3166,219.95,219.81,34.12857429]
[1731365774026,16.3166,219.95,219.82,5.40728598]
[1731365774166,16.3166,219.95,219.83,20.0]
[1731365774368,16.3166,219.95,219.82,5.40728598]
[1731365775768,16.3166,219.95,219.83,20.0]
[1731365775982,16.3166,219.95,219.83,5.40728598]
[1731365776188,16.3166,219.95,219.84,20.0]
[1731365776891,16.3166,219.95,219.84,5.40728598]
[1731365780977,16.3166,219.95,219.85,20.0]
[1731365781278,16.3166,219.95,219.87,20.0]
[1731365781573,16.3166,219.95,219.87,25.40728598]
[1731365785167,16.3166,219.95,219.88,5.40728598]
[1731365786153,16.3166,219.95,219.89,20.0]
[1731365786970,16.3166,219.95,219.89,5.40728598]
[1731365787158,16.3166,219.95,219.9,20.0]
[1731365787853,16.3166,219.95,219.9,5.40728598]
[1731365789568,16.3166,219.95,219.86,20.0]
[1731365789771,16.3166,219.95,219.88,20.0]
[1731365789962,16.3166,219.95,219.88,5.40728598]
[1731365790160,16.3166,219.95,219.89,20.0]
[1731365790959,16.3166,219.95,219.83,5.09095321]
[1731365790960,16.3166,219.95,219.9,5.40728598]
[1731365791356,16.3166,219.95,219.91,20.0]
[1731365792057,16.3166,219.95,219.84,20.0]
[1731365792367,16.3166,219.95,219.89,20.0]
[1731365792564,16.3166,219.95,219.91,20.0]
[1731365792962,16.3166,219.95,219.91,25.40728598]
[1731365793312,16.3166,219.95,219.92,5.40728598]
[1731365793486,16.3166,219.95,219.93,20.0]
[1731365793878,16.3166,219.95,219.93,25.40728598]
[1731365794081,6.5721,219.96,219.93,25.40728598]
[1731365794786,6.5721,219.96,219.94,5.92295265]
[1731365794989,6.5721,219.96,219.95,20.0]
[1731365795186,6.5721,219.96,219.95,25.92295265]
[1731365795982,13.16945824,220.0,219.95,34.64424096]
[1731365796194,13.16945824,220.0,219.97,20.0]
[1731365796471,13.16945824,220.0,219.99,20.0]
[1731365796695,13.16945824,220.0,219.99,31.66903364]
[1731365802279,13.16945824,220.0,219.99,31.66903364]
[1731365802664,13.16945824,220.0,219.99,25.92295265]
[1731365803364,13.16945824,220.0,219.99,32.17386697]
[1731365804968,13.16945824,220.0,219.95,4.89747452]
[1731365805167,13.16945824,220.0,219.96,5.92295265]
[1731365805487,13.16945824,220.0,219.97,20.0]
[1731365805980,13.16945824,220.0,219.97,25.92295265]
[1731365806879,13.16945824,220.0,219.98,5.92295265]
[1731365807091,13.16945824,220.0,219.99,20.0]
[1731365807669,13.16945824,220.0,219.99,5.92295265]
[1731365810499,13.16945824,220.0,219.99,12.17386697]
[1731365810865,13.16945824,220.0,219.99,32.17386697]
[1731365815186,13.16945824,220.0,219.99,12.17386697]
[1731365815380,13.16945824,220.0,219.93,6.17067487]
[1731365816602,13.16945824,220.0,219.94,20.0]
[1731365816895,13.16945824,220.0,219.96,20.0]
[1731365817097,9.09800775,219.99,219.98,20.0]
[1731365817279,13.16945824,220.0,219.98,26.17067487]
[1731365817598,29.57805824,220.0,219.99,26.17067487]
[1731365821485,13.16945824,220.0,219.99,26.17067487]
[1731365829303,13.16945817,220.0,219.99,26.17067487]
[1731365832904,35.92915817,220.0,219.99,20.0]
[1731365833086,35.92915817,220.0,219.96,20.0]
[1731365833292,35.92915817,220.0,219.96,25.7935603]
[1731365833594,35.92915817,220.0,219.96,5.7935603]
[1731365833799,35.92915817,220.0,219.91,5.86903585]
[1731365833999,35.92915817,220.0,219.87,5.7935603]
[1731365834307,21.6085,219.97,219.82,5.86903585]
[1731365834515,6.0108,219.97,219.83,5.7935603]
[1731365834696,6.0108,219.95,219.83,5.7935603]
[1731365835210,15.5977,219.94,219.83,5.7935603]
[1731365835597,15.5977,219.94,219.81,8.72128831]
[1731365836416,15.5977,219.94,219.77,5.76744826]
[1731365836417,0.1,219.91,219.77,5.76744826]
[1731365836587,21.6085,219.92,219.75,8.72128831]
[1731365836909,21.6085,219.92,219.76,2.69112291]
[1731365837104,21.6085,219.92,219.77,22.5047352]
[1731365837518,21.6085,219.92,219.76,5.7935603]
[1731365837804,21.6085,219.92,219.77,20.0]
[1731365839112,0.1,219.89,219.72,7.82565742]
[1731365839296,21.6085,219.86,219.73,0.02727458]
[1731365839709,21.6085,219.86,219.74,5.7935603]
[1731365840600,21.6085,219.86,219.75,20.0]
[1731365847604,21.6085,219.86,219.75,5.7935603]
[1731365848911,21.6085,219.86,219.78,20.0]
[1731365849125,21.6085,219.86,219.78,25.7935603]
[1731365849998,21.6085,219.86,219.78,5.7935603]
[1731365851199,4.73626588,219.99,219.98,0.1]
[1731365851433,6.3036,220.16,220.05,23.776884]
[1731365851721,0.1,220.31,220.06,22.98059381]
[1731365851722,6.3036,220.28,220.06,22.98059381]
[1731365851897,6.3036,220.28,220.15,8.72128831]
[1731365852098,6.3036,220.28,220.16,13.46671735]
[1731365852320,8.821288,220.34,220.16,13.46671735]
[1731365852525,6.5036,220.37,220.18,8.72128831]
[1731365852699,6.5036,220.37,220.19,13.42865623]
[1731365852901,0.1,220.35,220.19,13.42865623]
[1731365853423,0.1,220.32,220.19,6.34444845]
[1731365853606,0.1,220.33,220.19,6.34444845]
[1731365853802,0.1,220.32,220.19,6.34444845]
[1731365854028,0.1,220.31,220.19,6.34444845]
[1731365854229,0.1,220.3,220.19,6.34444845]
[1731365854431,15.4344,220.29,220.19,6.34444845]
[1731365856828,15.5344,220.29,220.19,6.34444845]
[1731365857308,23.776884,220.28,220.19,6.34444845]
[1731365860733,23.776884,220.28,220.08,43.776884]
[1731365860919,6.3037,220.26,220.08,25.49134297]
[1731365861613,5.39644515,220.26,220.08,25.49134297]
[1731365862230,5.39644515,220.26,220.09,5.61972549]
[1731365862427,23.876884,220.25,220.1,20.0]
[1731365862631,23.876884,220.25,220.11,5.61972549]
[1731365863220,0.1,220.24,220.11,5.61972549]
[1731365863614,23.776884,220.25,220.11,5.61972549]
[1731365867540,0.1,220.24,220.11,5.61972549]
[1731365867937,23.776884,220.25,220.11,5.61972549]
[1731365868123,0.1,220.24,220.11,5.61972549]
[1731365868321,23.876884,220.25,220.11,5.61972549]
[1731365871032,23.976884,220.25,220.11,5.61972549]
[1731365873215,23.876884,220.25,220.11,5.61972549]
[1731365873421,23.976884,220.25,220.11,5.61972549]
[1731365873718,23.876884,220.25,220.11,5.61972549]
[1731365873924,5.29644515,220.26,220.11,5.61972549]
[1731365881433,5.29644515,220.26,220.1,5.22611438]
[1731365882938,5.29644515,220.26,220.11,6.65140582]
[1731365883138,5.29644515,220.26,220.12,5.22611438]
[1731365883334,16.5044,220.25,220.13,6.65140582]
[1731365883535,16.5044,220.25,220.13,5.22611438]
[1731365886653,16.5044,220.25,220.13,11.8775202]
[1731365886950,16.5044,220.25,220.14,5.22611438]
[1731365888755,16.5044,220.25,220.15,6.65140582]
[1731365889247,16.5044,220.25,220.16,5.22611438]
[1731365893854,16.5044,220.25,220.17,20.0]
[1731365894236,16.5044,220.25,220.17,25.22611438]
[1731365894436,16.50439992,220.25,220.17,25.22611438]
[1731365894851,16.50439992,220.25,220.18,5.22611438]
[1731365896053,16.50439979,220.25,220.18,5.22611438]
[1731365896262,16.50439979,220.25,220.16,20.0]
[1731365896463,16.50439979,220.25,220.17,20.0]
[1731365896960,16.50439979,220.25,220.18,5.22611438]
[1731365898447,6.1324,220.37,220.18,17.16291081]
[1731365898761,6.1324,220.37,220.19,26.65140582]
[1731365898951,6.1324,220.37,220.2,5.22611438]
[1731365899251,15.9397,220.36,220.2,5.22611438]
[1731365900353,15.9397,220.36,220.2,11.8775202]
[1731365902862,15.9397,220.36,220.21,20.0]
[1731365903161,15.9397,220.36,220.22,5.22611438]
[1731365903362,6.643,220.35,220.13,8.69285186]
[1731365903546,6.643,220.35,220.16,5.22611438]
[1731365906477,6.643,220.35,220.17,20.0]
[1731365906652,6.643,220.35,220.18,5.22611438]
[1731365909555,6.6071,220.33,220.13,2.3201875]
[1731365909749,6.6071,220.33,220.16,5.22611438]
[1731365910851,15.8272,220.32,220.16,5.22611438]
[1731365911171,6.4026,220.31,220.16,5.22611438]
[1731365911370,6.4026,220.31,220.17,6.62973915]
[1731365911558,6.4026,220.31,220.18,5.22611438]
[1731365911753,6.4026,220.31,220.18,11.85585353]
[1731365913653,6.4026,220.31,220.18,5.22611438]
[1731365914151,11.687991,220.31,220.18,5.22611438]
[1731365914865,6.4026,220.31,220.19,23.776884]
[1731365915065,6.4026,220.31,220.2,5.22611438]
[1731365915256,6.4026,220.31,220.21,23.776884]
[1731365915448,6.4026,220.31,220.22,5.22611438]
[1731365921964,6.4026,220.31,220.15,5.22611438]
[1731365922472,6.4026,220.31,220.15,11.20585353]
[1731365922674,6.4026,220.31,220.16,5.97973915]
[1731365924266,6.4026,220.31,220.17,23.776884]
[1731365924467,6.4026,220.31,220.18,5.97973915]
[1731365924781,6.4026,220.31,220.18,11.20585353]
[1731365925766,6.4026,220.31,220.17,23.776884]
[1731365927080,6.0569,220.29,220.16,4.78592339]
[1731365927271,6.0569,220.29,220.16,10.76566254]
[1731365927663,6.0569,220.29,220.17,5.22611438]
[1731365927865,6.0569,220.29,220.17,11.20585353]
[1731365928564,6.0569,220.29,220.18,23.776884]
[1731365928870,6.0569,220.29,220.19,5.22611438]
[1731365930279,6.0569,220.29,220.2,23.776884]
[1731365930579,6.0569,220.29,220.21,5.22611438]
[1731365935583,6.0569,220.29,220.19,5.22611438]
[1731365935790,6.0569,220.29,220.2,23.776884]
[1731365936470,6.0569,220.29,220.21,5.22611438]
[1731365937290,6.0569,220.29,220.22,23.776884]
[1731365937466,6.0569,220.29,220.23,5.7598366]
[1731365945610,6.0569,220.29,220.18,29.5367206]
[1731365947407,5.82841223,220.29,220.18,29.5367206]
[1731365948096,10.45513383,220.28,220.18,29.5367206]
[1731365948283,5.82841223,220.29,220.18,29.5367206]
[1731365953303,5.82841223,220.29,220.18,5.7598366]
[1731365953489,5.82841223,220.29,220.13,77.1]
[1731365953490,5.82841223,220.29,220.14,20.0]
[1731365953700,5.82841223,220.29,220.16,5.7598366]
[1731365954714,5.82841223,220.29,220.17,23.776884]
[1731365955313,5.82841223,220.29,220.18,5.7598366]
[1731365961109,5.82841223,220.29,220.16,20.0]
[1731365961417,5.82841223,220.29,220.16,20.0999]
[1731365962714,5.82841223,220.29,220.16,0.0999]
[1731365963811,5.82841223,220.29,220.16,5.8597366]
[1731365964198,5.82841223,220.29,220.17,20.0]
[1731365967514,15.6315,220.28,220.17,20.0]
[1731365967716,15.6315,220.28,220.13,8.08870865]
[1731365967914,15.6315,220.28,220.14,5.7598366]
[1731365968716,15.6315,220.28,220.13,1.03789218]
[1731365968899,15.6315,220.28,220.12,11.05857912]
[1731365969106,15.6315,220.28,220.13,20.0]
[1731365969424,15.6315,220.28,220.14,8.69285186]
[1731365969622,15.6315,220.28,220.15,20.0]
[1731365970411,9.8158605,220.27,220.15,20.0]
[1731365970603,15.6315,220.28,220.15,20.0]
[1731365970806,15.6315,220.28,220.16,5.3438484]
[1731365971000,15.6315,220.28,220.17,20.0]
[1731365971525,15.6315,220.28,220.15,20.0]
[1731365975228,15.6315,220.28,220.17,20.0]
[1731365975605,15.6315,220.28,220.16,20.0]
[1731365976115,15.6315,220.28,220.13,28.69285186]
[1731365976624,6.3458,220.27,220.15,20.0]
[1731365978827,6.3458,220.27,220.16,8.69285186]
[1731365979404,6.3458,220.27,220.16,14.03670026]
[1731365980024,6.3458,220.27,220.14,8.69285186]
[1731365980230,6.3458,220.27,220.16,8.69285186]
[1731365980402,6.3458,220.27,220.15,20.0]
[1731365982228,15.0867,220.26,220.15,20.0]
[1731365982428,15.0867,220.26,220.13,20.0]
[1731365982610,6.0215,220.25,220.13,20.0]
[1731365982928,16.149,220.24,220.13,20.0]
[1731365983422,16.149,220.24,220.12,8.69285186]
[1731365984330,16.149,220.22,220.1,5.3438484]
[1731365984535,6.0215,220.21,220.1,5.3438484]
[1731365985223,6.0215,220.21,220.11,8.69285186]
[1731365985817,6.0215,220.21,220.16,8.69285186]
[1731365986015,6.0215,220.21,220.13,20.0]
[1731365986236,6.0215,220.21,220.14,5.3438484]
[1731365987736,9.76586525,220.2,220.14,5.3438484]
[1731365987917,6.02149995,220.21,220.14,5.3438484]
[1731365988123,6.02149995,220.21,220.09,8.69285186]
[1731365988320,6.02149995,220.21,220.1,5.3438484]
[1731365991318,15.6129,220.2,220.1,5.3438484]
[1731365991539,21.9928,220.2,220.1,5.3438484]
[1731365993346,23.2576,220.19,220.1,5.3438484]
[1731365993949,23.2576,220.19,220.06,5.3438484]
[1731365994140,23.2576,220.19,220.07,0.02727458]
[1731365994446,23.2576,220.19,220.08,5.3438484]
[1731365994643,23.2576,220.19,220.09,0.02727458]
[1731366000450,6.3113,220.18,220.09,0.02727458]
[1731366000665,21.784,220.18,220.09,0.02727458]
[1731366000829,21.784,220.18,220.12,8.69285186]
[1731366001145,21.784,220.18,220.1,5.3438484]
[1731366012455,21.784,220.18,220.08,20.0]
[1731366014462,21.784,220.18,220.06,4.9579038]
[1731366014657,21.784,220.18,220.03,6.65050952]
[1731366014658,23.776884,220.15,219.99,8.69285186]
[1731366015050,6.5186,220.14,220.01,8.69285186]
[1731366015564,6.5186,220.14,220.03,8.69285186]
[1731366015863,6.5186,220.14,219.97,27.53272557]
[1731366016057,6.5186,220.14,220.03,20.0]
[1731366016570,6.51859998,220.14,220.04,8.69285186]
[1731366016853,6.51859998,220.14,220.05,20.0]
[1731366017657,6.51859991,220.14,220.05,20.0]
[1731366018545,6.51859991,220.14,220.06,0.1378357]
[1731366018865,6.51859991,220.14,220.06,0.13782943]
[1731366019064,6.51859991,220.14,220.05,0.13782943]
[1731366020874,6.51859991,220.14,220.04,20.0]
[1731366021244,6.51859991,220.14,220.03,0.1378357]
[1731366021446,16.537,220.13,220.02,0.13784823]
[1731366021670,16.537,220.13,219.99,0.02727458]
[1731366021861,16.537,220.13,220.01,8.69285186]
[1731366022051,16.287,220.18,220.12,8.69285186]
[1731366022246,16.287,220.18,220.15,8.69285186]
[1731366022477,16.287,220.18,220.14,8.69285186]
[1731366022647,16.287,220.18,220.14,14.21192232]
[1731366022847,16.287,220.18,220.15,5.51907046]
[1731366023251,16.287,220.18,220.1,20.0]
[1731366023447,16.287,220.18,220.1,8.69285186]
[1731366023666,16.287,220.18,220.1,20.0]
[1731366024055,16.287,220.18,220.11,8.69285186]
[1731366024359,9.77848415,220.17,220.09,20.0]
[1731366024559,9.82652879,220.16,220.09,20.0]
[1731366024758,16.287,220.18,220.14,8.69285186]
[1731366025079,16.287,220.18,220.1,20.0]
[1731366025376,16.287,220.18,220.09,5.45860477]
[1731366025377,16.287,220.18,220.13,8.69285186]
[1731366025664,16.287,220.18,220.16,8.69285186]
[1731366026270,15.9247,220.18,220.16,8.69285186]
[1731366026464,15.9247,220.18,220.12,20.0]
[1731366026668,15.9247,220.18,220.16,8.69285186]
[1731366028556,6.0477,220.19,220.12,20.0]
[1731366028867,6.0477,220.19,220.15,20.0]
[1731366029052,6.0477,220.19,220.06,28.23484922]
[1731366029254,6.0477,220.19,220.12,20.0]
[1731366029569,21.457,220.19,220.12,20.0]
[1731366031068,21.457,220.19,220.11,8.69285186]
[1731366031371,21.457,220.19,220.12,20.0]
[1731366031990,21.457,220.19,220.13,8.69285186]
[1731366033090,21.457,220.19,220.15,8.69285186]
[1731366033586,21.457,220.19,220.08,43.776884]
[1731366033881,21.457,220.19,220.15,8.69285186]
[1731366035165,21.457,220.19,220.08,49.23548877]
[1731366035375,21.457,220.19,220.16,8.69285186]
[1731366035863,21.457,220.19,220.14,8.69285186]
[1731366039562,21.457,220.19,220.1,43.776884]
[1731366039563,22.4676,220.24,220.16,8.69285186]
[1731366039762,22.4676,220.24,220.18,8.69285186]
[1731366039966,22.4676,220.24,220.16,8.69285186]
[1731366040682,22.4676,220.24,220.15,8.69285186]
[1731366040882,22.4676,220.24,220.13,14.15145663]
[1731366041072,22.4676,220.24,220.15,8.69285186]
[1731366041663,22.4676,220.24,220.13,8.69285186]
[1731366042083,22.4676,220.24,220.13,14.15145663]
[1731366042284,22.4676,220.24,220.13,8.69285186]
[1731366043371,22.4676,220.24,220.11,5.94296073]
[1731366043575,22.4676,220.24,220.13,8.69285186]
[1731366045477,22.4676,220.24,220.12,23.776884]
[1731366045671,22.4676,220.24,220.14,8.69285186]
[1731366046285,2.30428816,220.38,220.2,8.69285186]
[1731366046584,6.316,220.37,220.22,8.69285186]
[1731366046892,6.5921,220.35,220.21,14.15145663]
[1731366047381,16.3209,220.34,220.21,8.69285186]
[1731366048367,16.3209,220.34,220.17,43.776884]
[1731366048692,16.3209,220.34,220.2,8.69285186]
[1731366048878,16.3209,220.34,220.22,8.69285186]
[1731366049076,16.3209,220.34,220.23,5.45860477]
[1731366049479,23.876884,220.32,220.06,0.0999]
[1731366049682,22.2171,220.29,220.06,5.55850477]
[1731366049881,22.2171,220.29,220.13,8.69285186]
[1731366050499,22.2171,220.28,220.13,8.69285186]
[1731366053071,22.2171,220.28,220.09,5.45860477]